fUSD/lending_fUSD_20240919
["ID","MTS","AMOUNT","RATE_DAILY","PERIOD"]
[338531175,1726721450316,-500.0,0.00013447,2]
[338531176,1726721450327,-500.0,0.00013447,2]
[338531177,1726721450337,-706.86,0.00013447,2]
[338531178,1726721450347,-500.0,0.00013447,2]
[338531179,1726721450358,-12266.92,0.00013447,2]
[338531180,1726721450368,-667.44,0.00013447,2]
[338531181,1726721450378,-500.0,0.00013447,2]
[338531182,1726721450388,-727.92,0.00013447,2]
[338531183,1726721450398,-684.68,0.00013447,2]
[338531184,1726721450407,-1449.11,0.00013447,2]
[338531185,1726721450417,-2133.44,0.00013447,2]
[338531186,1726721450427,-1630.44,0.00013447,2]
[338531187,1726721450437,-633.88,0.00013447,2]
[338531188,1726721450447,-500.0,0.00013447,2]
[338531189,1726721450457,-500.0,0.00013447,2]
[338531190,1726721450466,-520.15,0.00013447,2]
[338531191,1726721450476,-500.0,0.00013447,2]
[338531192,1726721450486,-890.98,0.00013447,2]
[338531193,1726721450495,-3075.27,0.00013447,2]
[338531194,1726721450506,-500.0,0.00013447,2]
[338531195,1726721450516,-4865.01,0.00013447,2]
[338531196,1726721450525,-151.0,0.00013447,2]
[338531197,1726721450535,-500.0,0.00013447,2]
[338531198,1726721450545,-151.0,0.00013447,2]
[338531199,1726721450555,-500.0,0.00013447,2]
[338531200,1726721450565,-500.0,0.00013447,2]
[338531201,1726721450574,-3909.77,0.00013447,2]
[338531202,1726721450584,-367.07,0.00013447,2]
[338531203,1726721450593,-9570.69524648,0.00013496,2]
[338531204,1726721450603,-200.0,0.00013527,2]
[338531205,1726721450613,-200.0,0.00013527,2]
[338531206,1726721450623,-200.0,0.00013528,2]
[338531207,1726721450632,-5614.92,0.00013544,2]
[338531208,1726721450642,-839.46,0.00013544,2]
[338531209,1726721450652,-5838.77,0.00013544,2]
[338531210,1726721450661,-8254.25,0.00013544,2]
[338531211,1726721450670,-500.0,0.00013544,2]
[338531212,1726721450680,-500.0,0.00013544,2]
[338531213,1726721450689,-8367.19,0.00013544,2]
[338531214,1726721450698,-500.0,0.00013544,2]
[338531215,1726721450707,-500.0,0.00013544,2]
[338531216,1726721450718,-500.0,0.00013546,2]
[338531217,1726721450727,-500.0,0.00013546,2]
[338531218,1726721450736,-500.0,0.00013546,2]
[338531219,1726721450745,-526.58937649,0.00013546,2]
[338531220,1726721450755,-500.0,0.00013546,2]
[338531221,1726721450764,-500.0,0.00013546,2]
[338531222,1726721450774,-500.0,0.00013546,2]
[338531223,1726721450783,-873.67,0.00013546,2]
[338531224,1726721450792,-500.0,0.00013546,2]
[338531225,1726721450801,-567.13181592,0.00013546,2]
[338531226,1726721450811,-3593.7,0.00013546,2]
[338531227,1726721450820,-500.0,0.00013546,2]
[338531228,1726721450829,-500.0,0.00013546,2]
[338531229,1726721450840,-1055.62,0.00013546,2]
[338531230,1726721450851,-500.0,0.00013546,2]
[338531231,1726721450861,-15284.04038863,0.00013546,2]
[338531232,1726721450870,-500.0,0.00013546,2]
[338531233,1726721450879,-3674.94,0.00013546,2]
[338531234,1726721450890,-3586.59,0.00013546,2]
[338531235,1726721450899,-500.0,0.00013546,2]
[338531236,1726721450909,-500.0,0.00013546,2]
[338531237,1726721450921,-651.72,0.00013546,2]
[338531238,1726721450931,-500.0,0.00013546,2]
[338531239,1726721450940,-5850.28,0.00013546,2]
[338531240,1726721450950,-1382.02,0.00013546,2]
[338531241,1726721450960,-2255.74,0.00013546,2]
[338531242,1726721450969,-2984.89,0.00013546,2]
[338531243,1726721450978,-2539.01,0.00013546,2]
[338531244,1726721450987,-1228.99,0.00013546,2]
[338531245,1726721450996,-500.0,0.00013546,2]
[338531246,1726721451006,-864.0,0.00013546,2]
[338531247,1726721451015,-1567.12,0.00013546,2]
[338531248,1726721451024,-500.0,0.00013546,2]
[338531249,1726721451033,-2137.82,0.00013546,2]
[338531250,1726721451043,-2542.22,0.00013546,2]
[338531251,1726721451052,-500.0,0.00013546,2]
[338531252,1726721451062,-1031.79,0.00013546,2]
[338531253,1726721451071,-500.0,0.00013546,2]
[338531254,1726721451080,-500.0,0.00013546,2]
[338531255,1726721451090,-500.0,0.00013546,2]
[338531256,1726721451099,-500.0,0.00013546,2]
[338531257,1726721451108,-1979.95,0.00013546,2]
[338531258,1726721451117,-718.39,0.00013546,2]
[338531259,1726721451127,-500.0,0.00013546,2]
[338531260,1726721451136,-2404.47,0.00013546,2]
[338531261,1726721451145,-3103.02,0.00013546,2]
[338531262,1726721451155,-796.58,0.00013546,2]
[338531263,1726721451164,-500.0,0.00013546,2]
[338531264,1726721451173,-500.0,0.00013546,2]
[338531265,1726721451182,-1970.3,0.00013546,2]
[338531266,1726721451191,-500.0,0.00013546,2]
[338531267,1726721451200,-500.0,0.00013546,2]
[338531268,1726721451209,-852.6,0.00013546,2]
[338531269,1726721451219,-500.0,0.00013546,2]
[338531270,1726721451228,-1157.46,0.00013546,2]
[338531271,1726721451238,-500.0,0.00013546,2]
[338531272,1726721451247,-500.0,0.00013546,2]
[338531273,1726721451256,-500.0,0.00013546,2]
[338531274,1726721451265,-4549.72,0.00013546,2]
[338531275,1726721451275,-500.0,0.00013546,2]
[338531276,1726721451284,-426.10221352,0.00013546,2]
[338531277,1726721451293,-500.0,0.00013546,2]
[338531278,1726721451302,-500.0,0.00013546,2]
[338531279,1726721451312,-500.0,0.00013546,2]
[338531280,1726721451321,-500.0,0.00013546,2]
[338531281,1726721451330,-500.0,0.00013546,2]
[338531282,1726721451342,-1025.3,0.00013546,2]
[338531283,1726721451351,-566.50718708,0.00013546,2]
[338531284,1726721451361,-538.97678779,0.00013546,2]
[338531285,1726721451370,-500.0,0.00013546,2]
[338531286,1726721451379,-500.0,0.00013546,2]
[338531287,1726721451388,-500.0,0.00013546,2]
[338531288,1726721451398,-500.0,0.00013546,2]
[338531289,1726721451407,-500.0,0.00013546,2]
[338531290,1726721451416,-500.0,0.00013546,2]
[338531291,1726721451425,-5067.65,0.00013546,2]
[338531292,1726721451435,-500.0,0.00013546,2]
[338531293,1726721451444,-2336.68,0.00013546,2]
[338531294,1726721451453,-500.0,0.00013546,2]
[338531295,1726721451463,-1015.0,0.00013546,2]
[338531296,1726721451472,-2447.39,0.00013546,2]
[338531297,1726721451482,-500.0,0.00013546,2]
[338531298,1726721451490,-500.0,0.00013546,2]
[338531299,1726721451500,-500.0,0.00013546,2]
[338531300,1726721451509,-500.0,0.00013546,2]
[338531301,1726721451518,-1390.48,0.00013546,2]
[338531302,1726721451527,-665.9,0.00013546,2]
[338531303,1726721451537,-500.0,0.00013546,2]
[338531304,1726721451546,-552.52,0.00013546,2]
[338531305,1726721451555,-1747.39,0.00013546,2]
[338531306,1726721451564,-476.72514459,0.00013546,2]
[338531307,1726721451573,-500.0,0.00013546,2]
[338531308,1726721451582,-538.3,0.00013546,2]
[338531309,1726721451591,-500.0,0.00013546,2]
[338531310,1726721451601,-2036.19,0.00013546,2]
[338531311,1726721451610,-500.0,0.00013546,2]
[338531312,1726721451619,-820.59,0.00013546,2]
[338531313,1726721451629,-500.0,0.00013546,2]
[338531314,1726721451638,-500.0,0.00013546,2]
[338531315,1726721451647,-2577.48,0.00013546,2]
[338531316,1726721451656,-500.0,0.00013546,2]
[338531317,1726721451665,-295.91,0.00013546,2]
[338531318,1726721451674,-500.0,0.00013546,2]
[338531319,1726721451683,-940.21,0.00013546,2]
[338531320,1726721451692,-500.0,0.00013546,2]
[338531321,1726721451701,-500.0,0.00013546,2]
[338531322,1726721451710,-500.0,0.00013546,2]
[338531323,1726721451719,-4295.5,0.00013546,2]
[338531324,1726721451728,-2214.16,0.00013546,2]
[338531325,1726721451738,-804.83,0.00013546,2]
[338531326,1726721451746,-500.0,0.00013546,2]
[338531327,1726721451866,-5318.52,0.00013546,2]
[338531328,1726721451876,-2948.94,0.00013546,2]
[338531329,1726721451886,-500.0,0.00013546,2]
[338531330,1726721451896,-883.11,0.00013546,2]
[338531331,1726721451905,-2430.05,0.00013546,2]
[338531332,1726721451917,-1347.59,0.00013546,2]
[338531333,1726721451927,-500.0,0.00013546,2]
[338531334,1726721451936,-500.0,0.00013546,2]
[338531335,1726721451946,-1784.36,0.00013546,2]
[338531336,1726721451956,-543.65,0.00013546,2]
[338531337,1726721451967,-500.0,0.00013546,2]
[338531338,1726721451976,-4898.56,0.00013546,2]
[338531339,1726721451986,-5474.71,0.00013546,2]
[338531340,1726721451996,-500.0,0.00013546,2]
[338531341,1726721452005,-3076.01,0.00013546,2]
[338531342,1726721452015,-1838.4,0.00013546,2]
[338531343,1726721452025,-2927.56,0.00013546,2]
[338531344,1726721452034,-3222.22,0.00013546,2]
[338531345,1726721452044,-500.0,0.00013546,2]
[338531346,1726721452053,-9867.63,0.00013546,2]
[338531347,1726721452063,-1000.0,0.00013546,2]
[338531348,1726721452072,-500.0,0.00013546,2]
[338531349,1726721452082,-3670.49,0.00013546,2]
[338531350,1726721452091,-3218.25,0.00013546,2]
[338531351,1726721452101,-2599.93,0.00013546,2]
[338531352,1726721452110,-181677.85485082,0.00013547,2]
[338531353,1726721452120,-500.0,0.00013547,2]
[338531354,1726721452130,-500.0,0.00013547,2]
[338531355,1726721452139,-500.0,0.00013547,2]
[338531356,1726721452149,-151.0,0.00013547,2]
[338531357,1726721452158,-500.0,0.00013547,2]
[338531358,1726721452168,-1036.42,0.00013547,2]
[338531359,1726721452178,-1814.59,0.00013547,2]
[338531360,1726721452187,-568.03,0.00013547,2]
[338531361,1726721452198,-684.07,0.00013547,2]
[338531362,1726721452207,-500.0,0.00013547,2]
[338531363,1726721452217,-1592.43,0.00013547,2]
[338531364,1726721452227,-227.667954,0.00013547,2]
[338531365,1726721452237,-500.0,0.00013547,2]
[338531366,1726721452246,-1457.88,0.00013547,2]
[338531367,1726721452256,-500.0,0.00013547,2]
[338531368,1726721452265,-1465.29,0.00013547,2]
[338531369,1726721452276,-1173.04,0.00013547,2]
[338531370,1726721452285,-1533.0,0.00013547,2]
[338531371,1726721452296,-554.01,0.00013547,2]
[338531372,1726721452306,-500.0,0.00013547,2]
[338531373,1726721452316,-727.95,0.00013547,2]
[338531374,1726721452325,-500.0,0.00013547,2]
[338531375,1726721452335,-500.0,0.00013547,2]
[338531376,1726721452345,-500.0,0.00013547,2]
[338531377,1726721452355,-500.0,0.00013547,2]
[338531378,1726721452364,-500.0,0.00013547,2]
[338531379,1726721452373,-500.0,0.00013547,2]
[338531380,1726721452383,-524.98,0.00013547,2]
[338531381,1726721452392,-500.0,0.00013547,2]
[338531382,1726721452402,-890.61,0.00013547,2]
[338531383,1726721452411,-750.88,0.00013547,2]
[338531384,1726721452421,-260.758963,0.00013547,2]
[338531385,1726721452431,-150.0,0.00013547,2]
[338531386,1726721452440,-500.0,0.00013547,2]
[338531387,1726721452449,-500.0,0.00013547,2]
[338531388,1726721452459,-857.99,0.00013547,2]
[338531389,1726721452475,-651.41,0.00013547,2]
[338531390,1726721452484,-714.27,0.00013547,2]
[338531391,1726721452493,-1246.84,0.00013547,2]
[338531392,1726721452503,-1875.92,0.00013547,2]
[338531393,1726721452513,-580.24,0.00013547,2]
[338531394,1726721452522,-500.0,0.00013547,2]
[338531395,1726721452531,-1045.57,0.00013547,2]
[338531396,1726721452540,-625.1123437,0.00013547,2]
[338531397,1726721452549,-500.0,0.00013547,2]
[338531398,1726721452558,-1994.98,0.00013547,2]
[338531399,1726721452567,-500.0,0.00013547,2]
[338531400,1726721452577,-500.0,0.00013547,2]
[338531401,1726721452586,-1444.54,0.00013547,2]
[338531402,1726721452595,-500.0,0.00013547,2]
[338531403,1726721452604,-500.0,0.00013547,2]
[338531404,1726721452613,-885.15,0.00013547,2]
[338531405,1726721452622,-882.5,0.00013547,2]
[338531406,1726721452631,-500.0,0.00013547,2]
[338531407,1726721452641,-1126.2,0.00013547,2]
[338531408,1726721452650,-1036.13,0.00013547,2]
[338531409,1726721452659,-500.0,0.00013547,2]
[338531410,1726721452669,-1210.41,0.00013547,2]
[338531411,1726721452678,-500.0,0.00013547,2]
[338531412,1726721452687,-721.93,0.00013547,2]
[338531413,1726721452696,-500.0,0.00013547,2]
[338531414,1726721452706,-890.07,0.00013547,2]
[338531415,1726721452717,-500.0,0.00013547,2]
[338531416,1726721452726,-500.0,0.00013547,2]
[338531417,1726721452735,-500.0,0.00013547,2]
[338531418,1726721452744,-531.95,0.00013547,2]
[338531419,1726721452753,-500.0,0.00013547,2]
[338531420,1726721452762,-847.94,0.00013547,2]
[338531421,1726721452771,-500.0,0.00013547,2]
[338531422,1726721452780,-500.0,0.00013547,2]
[338531423,1726721452789,-500.0,0.00013547,2]
[338531424,1726721452800,-1247.13,0.00013547,2]
[338531425,1726721452810,-966.21,0.00013547,2]
[338531426,1726721452819,-500.0,0.00013547,2]
[338531427,1726721452830,-500.0,0.00013547,2]
[338531428,1726721452840,-1171.32,0.00013547,2]
[338531429,1726721452851,-500.0,0.00013547,2]
[338531430,1726721452860,-500.0,0.00013547,2]
[338531431,1726721452870,-500.0,0.00013547,2]
[338531432,1726721452879,-1014.34,0.00013547,2]
[338531433,1726721452889,-500.0,0.00013547,2]
[338531434,1726721452898,-500.0,0.00013547,2]
[338531435,1726721452908,-708.48,0.00013547,2]
[338531436,1726721452920,-500.0,0.00013547,2]
[338531437,1726721452929,-500.0,0.00013547,2]
[338531438,1726721452939,-1077.73,0.00013547,2]
[338531439,1726721452949,-500.0,0.00013547,2]
[338531440,1726721452958,-307.20575654,0.00013547,2]
[338531441,1726721452967,-923.6,0.00013547,2]
[338531442,1726721452977,-500.0,0.00013547,2]
[338531443,1726721452986,-500.0,0.00013547,2]
[338531444,1726721452996,-500.0,0.00013547,2]
[338531445,1726721453005,-500.0,0.00013547,2]
[338531446,1726721453015,-588.88,0.00013547,2]
[338531447,1726721453024,-1256.87,0.00013547,2]
[338531448,1726721453034,-620.25,0.00013547,2]
[338531449,1726721453043,-500.0,0.00013547,2]
[338531450,1726721453052,-1477.36,0.00013547,2]
[338531451,1726721453062,-500.0,0.00013547,2]
[338531452,1726721453071,-1451.44,0.00013547,2]
[338531453,1726721453081,-500.0,0.00013547,2]
[338531454,1726721453090,-500.0,0.00013547,2]
[338531455,1726721453100,-1352.1,0.00013547,2]
[338531456,1726721453110,-792.65,0.00013547,2]
[338531457,1726721453120,-2085.39,0.00013547,2]
[338531458,1726721453129,-500.0,0.00013547,2]
[338531459,1726721453138,-1403.01,0.00013547,2]
[338531460,1726721453147,-500.0,0.00013547,2]
[338531461,1726721453156,-1578.28,0.00013547,2]
[338531462,1726721453166,-500.0,0.00013547,2]
[338531463,1726721453175,-707.51,0.00013547,2]
[338531464,1726721453184,-1491.79,0.00013547,2]
[338531465,1726721453194,-500.0,0.00013547,2]
[338531466,1726721453203,-500.0,0.00013547,2]
[338531467,1726721453213,-500.0,0.00013547,2]
[338531468,1726721453222,-850.21,0.00013547,2]
[338531469,1726721453231,-500.0,0.00013547,2]
[338531470,1726721453240,-500.0,0.00013547,2]
[338531471,1726721453250,-500.0,0.00013547,2]
[338531472,1726721453259,-500.0,0.00013547,2]
[338531473,1726721453268,-654.46,0.00013547,2]
[338531474,1726721453278,-500.0,0.00013547,2]
[338531475,1726721453288,-583.16,0.00013547,2]
[338531476,1726721453297,-257.17437948,0.00013547,2]
[338531477,1726721453306,-500.0,0.00013547,2]
[338531478,1726721453315,-723.35,0.00013547,2]
[338531479,1726721453325,-500.0,0.00013547,2]
[338531480,1726721453335,-398.937309,0.00013547,2]
[338531481,1726721453344,-500.0,0.00013547,2]
[338531482,1726721453353,-398.937314,0.00013547,2]
[338531483,1726721453363,-1344.97,0.00013547,2]
[338531484,1726721453372,-657.41,0.00013547,2]
[338531485,1726721453382,-500.0,0.00013547,2]
[338531486,1726721453391,-445.32113066,0.00013547,2]
[338531487,1726721453401,-500.0,0.00013547,2]
[338531488,1726721453410,-500.0,0.00013547,2]
[338531489,1726721453420,-500.0,0.00013547,2]
[338531490,1726721453430,-500.0,0.00013547,2]
[338531491,1726721453440,-500.0,0.00013547,2]
[338531492,1726721453449,-981.87,0.00013547,2]
[338531493,1726721453459,-500.0,0.00013547,2]
[338531494,1726721453469,-601.13,0.00013547,2]
[338531495,1726721453478,-500.0,0.00013547,2]
[338531496,1726721453489,-1313.14,0.00013547,2]
[338531497,1726721453498,-791.53,0.00013547,2]
[338531498,1726721453509,-500.0,0.00013547,2]
[338531499,1726721453518,-225.28274487,0.00013547,2]
[338531500,1726721453527,-500.0,0.00013547,2]
[338531501,1726721453537,-500.0,0.00013547,2]
[338531502,1726721453547,-1032.67,0.00013547,2]
[338531503,1726721453556,-1692.84,0.00013547,2]
[338531504,1726721453566,-500.0,0.00013547,2]
[338531505,1726721453575,-500.0,0.00013547,2]
[338531506,1726721453586,-3156.33,0.00013547,2]
[338531507,1726721453596,-773.4,0.00013547,2]
[338531508,1726721453605,-636.75,0.00013547,2]
[338531509,1726721453615,-500.0,0.00013547,2]
[338531510,1726721453624,-500.0,0.00013547,2]
[338531511,1726721453633,-1111.86,0.00013547,2]
[338531512,1726721453642,-1757.75,0.00013547,2]
[338531513,1726721453652,-500.0,0.00013547,2]
[338531514,1726721453661,-1369.89,0.00013547,2]
[338531515,1726721453671,-535.86,0.00013547,2]
[338531516,1726721453680,-500.0,0.00013547,2]
[338531517,1726721453690,-500.0,0.00013547,2]
[338531518,1726721453699,-630.25,0.00013547,2]
[338531519,1726721453709,-500.0,0.00013547,2]
[338531520,1726721453719,-633.69,0.00013547,2]
[338531521,1726721453728,-1346.96,0.00013547,2]
[338531522,1726721453739,-500.0,0.00013547,2]
[338531523,1726721453750,-500.0,0.00013547,2]
[338531524,1726721453761,-1154.06,0.00013547,2]
[338531525,1726721453775,-500.0,0.00013547,2]
[338531526,1726721453794,-996.69,0.00013547,2]
[338531527,1726721453813,-500.0,0.00013547,2]
[338531528,1726721453825,-500.0,0.00013547,2]
[338531529,1726721453835,-500.0,0.00013547,2]
[338531530,1726721453848,-500.0,0.00013547,2]
[338531531,1726721453858,-225.78749506,0.00013547,2]
[338531532,1726721453867,-1532.28,0.00013547,2]
[338531533,1726721453877,-861.43,0.00013547,2]
[338531534,1726721453887,-929.8,0.00013547,2]
[338531535,1726721453897,-1992.79,0.00013547,2]
[338531536,1726721453907,-1463.32,0.00013547,2]
[338531537,1726721453919,-1543.93,0.00013547,2]
[338531538,1726721453929,-500.0,0.00013547,2]
[338531539,1726721453939,-500.0,0.00013547,2]
[338531540,1726721453949,-2846.54,0.00013547,2]
[338531541,1726721453959,-500.0,0.00013547,2]
[338531542,1726721453969,-500.0,0.00013547,2]
[338531543,1726721453979,-500.0,0.00013547,2]
[338531544,1726721453989,-3862.97,0.00013547,2]
[338531545,1726721453998,-3753.39,0.00013547,2]
[338531546,1726721454008,-1086.72,0.00013547,2]
[338531547,1726721454319,-1858.44,0.00013547,2]
[338531548,1726721454330,-500.0,0.00013547,2]
[338531549,1726721454340,-2907.25,0.00013547,2]
[338531550,1726721454350,-3373.08,0.00013547,2]
[338531551,1726721454359,-500.0,0.00013547,2]
[338531552,1726721454370,-937.4,0.00013547,2]
[338531553,1726721454380,-1812.66,0.00013547,2]
[338531554,1726721454390,-1437.14,0.00013547,2]
[338531555,1726721454400,-2339.37,0.00013547,2]
[338531556,1726721454412,-500.0,0.00013547,2]
[338531557,1726721454422,-1826.31,0.00013547,2]
[338531558,1726721454431,-500.0,0.00013547,2]
[338531559,1726721454440,-1580.63,0.00013547,2]
[338531560,1726721454450,-1833.27,0.00013547,2]
[338531561,1726721454460,-473.86366065,0.00013547,2]
[338531562,1726721454469,-500.0,0.00013547,2]
[338531563,1726721454478,-500.0,0.00013547,2]
[338531564,1726721454488,-1564.65,0.00013547,2]
[338531565,1726721454497,-500.0,0.00013547,2]
[338531566,1726721454507,-616.44,0.00013547,2]
[338531567,1726721454517,-500.0,0.00013547,2]
[338531568,1726721454527,-559.41,0.00013547,2]
[338531569,1726721454537,-500.0,0.00013547,2]
[338531570,1726721454546,-2673.38,0.00013547,2]
[338531571,1726721454556,-500.0,0.00013547,2]
[338531572,1726721454566,-1762.66,0.00013547,2]
[338531573,1726721454576,-1599.88,0.00013547,2]
[338531574,1726721454585,-500.0,0.00013547,2]
[338531575,1726721454595,-500.0,0.00013547,2]
[338531576,1726721454604,-500.0,0.00013547,2]
[338531577,1726721454614,-519.0,0.00013547,2]
[338531578,1726721454624,-500.0,0.00013547,2]
[338531579,1726721454634,-571.39,0.00013547,2]
[338531580,1726721454643,-2220.04,0.00013547,2]
[338531581,1726721454653,-500.0,0.00013547,2]
[338531582,1726721454662,-703.06,0.00013547,2]
[338531583,1726721454672,-1665.65,0.00013547,2]
[338531584,1726721454681,-1120.78,0.00013547,2]
[338531585,1726721454691,-1166.36,0.00013547,2]
[338531586,1726721454701,-2180.37,0.00013547,2]
[338531587,1726721454711,-500.0,0.00013547,2]
[338531588,1726721454721,-2089.01,0.00013547,2]
[338531589,1726721454731,-500.0,0.00013547,2]
[338531590,1726721454741,-500.0,0.00013547,2]
[338531591,1726721454750,-1364.88,0.00013547,2]
[338531592,1726721454760,-623.38,0.00013547,2]
[338531593,1726721454770,-3011.4,0.00013547,2]
[338531594,1726721454779,-521.69,0.00013547,2]
[338531595,1726721454789,-541.98965479,0.00013547,2]
[338531596,1726721454799,-500.0,0.00013547,2]
[338531597,1726721454808,-1429.86,0.00013547,2]
[338531598,1726721454818,-500.0,0.00013547,2]
[338531599,1726721454828,-3343.07,0.00013547,2]
[338531600,1726721454840,-500.0,0.00013547,2]
[338531601,1726721454855,-892.59,0.00013547,2]
[338531602,1726721454865,-1571.57,0.00013547,2]
[338531603,1726721454874,-1001.27,0.00013547,2]
[338531604,1726721454885,-996.35,0.00013547,2]
[338531605,1726721454896,-1453.38,0.00013547,2]
[338531606,1726721454906,-500.0,0.00013547,2]
[338531607,1726721454917,-929.84,0.00013547,2]
[338531608,1726721454927,-500.0,0.00013547,2]
[338531609,1726721454936,-2250.97,0.00013547,2]
[338531610,1726721454946,-511.36,0.00013547,2]
[338531611,1726721454955,-500.0,0.00013547,2]
[338531612,1726721454966,-3796.74,0.00013547,2]
[338531613,1726721454976,-500.0,0.00013547,2]
[338531614,1726721454985,-500.0,0.00013547,2]
[338531615,1726721454995,-842.51,0.00013547,2]
[338531616,1726721455006,-1114.5,0.00013547,2]
[338531617,1726721455016,-704.72,0.00013547,2]
[338531618,1726721455025,-500.0,0.00013547,2]
[338531619,1726721455035,-939.23,0.00013547,2]
[338531620,1726721455044,-747.48,0.00013547,2]
[338531621,1726721455054,-2319.89,0.00013547,2]
[338531622,1726721455064,-849.39,0.00013547,2]
[338531623,1726721455074,-1530.11,0.00013547,2]
[338531624,1726721455084,-500.0,0.00013547,2]
[338531625,1726721455093,-3358.66,0.00013547,2]
[338531626,1726721455107,-2550.56,0.00013547,2]
[338531627,1726721455117,-1268.13,0.00013547,2]
[338531628,1726721455127,-1988.95,0.00013547,2]
[338531629,1726721455137,-2973.05,0.00013547,2]
[338531630,1726721455146,-1758.32,0.00013547,2]
[338531631,1726721455156,-500.0,0.00013547,2]
[338531632,1726721455166,-1591.9,0.00013547,2]
[338531633,1726721455175,-513.53,0.00013547,2]
[338531634,1726721455185,-2784.12,0.00013547,2]
[338531635,1726721455195,-1092.38,0.00013547,2]
[338531636,1726721455205,-3145.68,0.00013547,2]
[338531637,1726721455217,-545.73,0.00013547,2]
[338531638,1726721455227,-500.0,0.00013547,2]
[338531639,1726721455240,-697.02,0.00013547,2]
[338531640,1726721455251,-571.98,0.00013547,2]
[338531641,1726721455260,-500.0,0.00013547,2]
[338531642,1726721455270,-1420.83,0.00013547,2]
[338531643,1726721455280,-966.62,0.00013547,2]
[338531644,1726721455290,-2282.0,0.00013547,2]
[338531645,1726721455301,-500.0,0.00013547,2]
[338531646,1726721455311,-1429.48,0.00013547,2]
[338531647,1726721455320,-1036.68,0.00013547,2]
[338531648,1726721455331,-500.0,0.00013547,2]
[338531649,1726721455341,-500.0,0.00013547,2]
[338531650,1726721455351,-665.03,0.00013547,2]
[338531651,1726721455361,-500.0,0.00013547,2]
[338531652,1726721455370,-3190.95,0.00013547,2]
[338531653,1726721455380,-888.56,0.00013547,2]
[338531654,1726721455390,-613.97,0.00013547,2]
[338531655,1726721455400,-500.0,0.00013547,2]
[338531656,1726721455410,-500.0,0.00013547,2]
[338531657,1726721455420,-1798.32,0.00013547,2]
[338531658,1726721455430,-500.0,0.00013547,2]
[338531659,1726721455439,-4217.42,0.00013547,2]
[338531660,1726721455449,-1039.49,0.00013547,2]
[338531661,1726721455458,-2936.3,0.00013547,2]
[338531662,1726721455470,-500.0,0.00013547,2]
[338531663,1726721455479,-997.99,0.00013547,2]
[338531664,1726721455489,-500.0,0.00013547,2]
[338531665,1726721455499,-1100.68,0.00013547,2]
[338531666,1726721455509,-500.0,0.00013547,2]
[338531667,1726721455519,-1143.42,0.00013547,2]
[338531668,1726721455528,-594.3,0.00013547,2]
[338531669,1726721455538,-858.43,0.00013547,2]
[338531670,1726721455548,-3070.41,0.00013547,2]
[338531671,1726721455557,-957.37,0.00013547,2]
[338531672,1726721455566,-500.0,0.00013547,2]
[338531673,1726721455576,-500.0,0.00013547,2]
[338531674,1726721455586,-500.0,0.00013547,2]